fUST/lending_fUST_20250212
["ID","MTS","AMOUNT","RATE_DAILY","PERIOD"]
[352773802,1739303444094,-151.0,0.00011505,2]
[352773803,1739303444103,-151.0,0.00011505,2]
[352773804,1739303444113,-855.330248,0.00011505,2]
[352773805,1739303444123,-855.330248,0.00011505,2]
[352773806,1739303444134,-3045.468305,0.00011505,2]
[352773807,1739303444143,-3045.468305,0.00011505,2]
[352773808,1739303444155,-151.0,0.00011505,2]
[352773809,1739303444165,-151.0,0.00011505,2]
[352773810,1739303444174,-425.516405,0.00011505,2]
[352773811,1739303444183,-425.516405,0.00011505,2]
[352773812,1739303444193,-462.957425,0.00011505,2]
[352773813,1739303444203,-462.957425,0.00011505,2]
[352773814,1739303444212,-151.0,0.00011505,2]
[352773815,1739303444222,-151.0,0.00011505,2]
[352773816,1739303444231,-151.0,0.00011505,2]
[352773817,1739303444240,-151.0,0.00011505,2]
[352773818,1739303444249,-151.0,0.00011505,2]
[352773819,1739303444258,-151.0,0.00011505,2]
[352773820,1739303444268,-162.000257,0.00011505,2]
[352773821,1739303444277,-162.000257,0.00011505,2]
[352773822,1739303444287,-547.221696,0.00011505,2]
[352773823,1739303444296,-957.080128,0.00011505,2]
[352773824,1739303444305,-547.221696,0.00011505,2]
[352773825,1739303444314,-957.080128,0.00011505,2]
[352773826,1739303444323,-151.0,0.00011505,2]
[352773827,1739303444332,-151.0,0.00011505,2]
[352773828,1739303444341,-2888.67531,0.00011505,2]
[352773829,1739303444350,-2888.67531,0.00011505,2]
[352773830,1739303444359,-2888.67531,0.00011505,2]
[352773831,1739303444368,-2888.67531,0.00011505,2]
[352773832,1739303444379,-151.0,0.00011505,2]
[352773833,1739303444389,-151.0,0.00011505,2]
[352773834,1739303444399,-151.0,0.00011505,2]
[352773835,1739303444409,-151.0,0.00011505,2]
[352773836,1739303444418,-151.0,0.00011505,2]
[352773837,1739303444429,-151.0,0.00011505,2]
[352773838,1739303444439,-151.0,0.00011505,2]
[352773839,1739303444449,-232.519384,0.00011505,2]
[352773840,1739303444460,-232.519384,0.00011505,2]
[352773841,1739303444469,-151.0,0.00011505,2]
[352773842,1739303444479,-151.0,0.00011505,2]
[352773843,1739303444489,-151.0,0.00011505,2]
[352773844,1739303444499,-151.0,0.00011505,2]
[352773845,1739303444508,-232.519384,0.00011505,2]
[352773846,1739303444517,-232.519384,0.00011505,2]
[352773847,1739303444528,-151.0,0.00011505,2]
[352773848,1739303444539,-151.0,0.00011505,2]
[352773849,1739303444549,-151.0,0.00011505,2]
[352773850,1739303444559,-619.847019,0.00011505,2]
[352773851,1739303444568,-619.847019,0.00011505,2]
[352773852,1739303444577,-619.847019,0.00011505,2]
[352773853,1739303444587,-619.847019,0.00011505,2]
[352773854,1739303444596,-481.902733,0.00011505,2]
[352773855,1739303444605,-481.902733,0.00011505,2]
[352773856,1739303444614,-203.277187,0.00011505,2]
[352773857,1739303444624,-203.277187,0.00011505,2]
[352773858,1739303444633,-481.902733,0.00011505,2]
[352773859,1739303444644,-481.902733,0.00011505,2]
[352773860,1739303444654,-203.277187,0.00011505,2]
[352773861,1739303444663,-203.277187,0.00011505,2]
[352773862,1739303444672,-151.0,0.00011506,2]
[352773863,1739303444682,-151.0,0.00011506,2]
[352773864,1739303444692,-151.0,0.00011506,2]
[352773865,1739303444702,-268.537964,0.00011506,2]
[352773866,1739303444711,-268.537964,0.00011506,2]
[352773867,1739303444720,-151.0,0.00011506,2]
[352773868,1739303444730,-500.0,0.00011506,2]
[352773869,1739303444740,-500.0,0.00011506,2]
[352773870,1739303444750,-156.520759,0.00011506,2]
[352773871,1739303444759,-156.520759,0.00011506,2]
[352773872,1739303444773,-500.0,0.00011506,2]
[352773873,1739303444785,-151.0,0.00011506,2]
[352773874,1739303444795,-151.0,0.00011506,2]
[352773875,1739303444805,-151.0,0.00011506,2]
[352773876,1739303444815,-151.0,0.00011506,2]
[352773877,1739303444826,-500.0,0.00011506,2]
[352773878,1739303444836,-151.0,0.00011506,2]
[352773879,1739303444846,-202.403061,0.00011506,2]
[352773880,1739303444856,-151.0,0.00011506,2]
[352773881,1739303444867,-202.403061,0.00011506,2]
[352773882,1739303444877,-202.403061,0.00011506,2]
[352773883,1739303444887,-202.403061,0.00011506,2]
[352773884,1739303444899,-500.0,0.00011506,2]
[352773885,1739303444910,-151.0,0.00011506,2]
[352773886,1739303444921,-151.0,0.00011506,2]
[352773887,1739303444931,-500.0,0.00011506,2]
[352773888,1739303444941,-277.157456,0.00011506,2]
[352773889,1739303444951,-277.157456,0.00011506,2]
[352773890,1739303444962,-277.157456,0.00011506,2]
[352773891,1739303444971,-277.157456,0.00011506,2]
[352773892,1739303444981,-500.0,0.00011506,2]
[352773893,1739303444991,-500.0,0.00011506,2]
[352773894,1739303445001,-151.0,0.00011506,2]
[352773895,1739303445011,-151.0,0.00011506,2]
[352773896,1739303445021,-151.0,0.00011506,2]
[352773897,1739303445031,-855.330248,0.00011506,2]
[352773898,1739303445040,-855.330248,0.00011506,2]
[352773899,1739303445050,-855.330248,0.00011506,2]
[352773900,1739303445060,-855.330248,0.00011506,2]
[352773901,1739303445069,-3045.468305,0.00011506,2]
[352773902,1739303445078,-3045.468305,0.00011506,2]
[352773903,1739303445088,-3045.468305,0.00011506,2]
[352773904,1739303445099,-3045.468305,0.00011506,2]
[352773905,1739303445108,-151.0,0.00011506,2]
[352773906,1739303445117,-151.0,0.00011506,2]
[352773907,1739303445127,-500.0,0.00011506,2]
[352773908,1739303445136,-500.0,0.00011506,2]
[352773909,1739303445148,-425.516405,0.00011506,2]
[352773910,1739303445158,-425.516405,0.00011506,2]
[352773911,1739303445167,-425.516405,0.00011506,2]
[352773912,1739303445176,-425.516405,0.00011506,2]
[352773913,1739303445186,-462.957425,0.00011506,2]
[352773914,1739303445195,-462.957425,0.00011506,2]
[352773915,1739303445205,-462.957425,0.00011506,2]
[352773916,1739303445215,-462.957425,0.00011506,2]
[352773917,1739303445224,-151.0,0.00011506,2]
[352773918,1739303445234,-151.0,0.00011506,2]
[352773919,1739303445368,-151.0,0.00011506,2]
[352773920,1739303445378,-151.0,0.00011506,2]
[352773921,1739303445387,-151.0,0.00011506,2]
[352773922,1739303445398,-271.741878,0.00011506,2]
[352773923,1739303445407,-151.0,0.00011506,2]
[352773924,1739303445416,-1048.82,0.00011506,2]
[352773925,1739303445425,-158.061412,0.00011506,2]
[352773926,1739303445435,-154.923869,0.00011506,2]
[352773927,1739303445444,-758.1,0.00011506,2]
[352773928,1739303445454,-162.000257,0.00011506,2]
[352773929,1739303445463,-162.000257,0.00011506,2]
[352773930,1739303445473,-162.000257,0.00011506,2]
[352773931,1739303445482,-162.000257,0.00011506,2]
[352773932,1739303445493,-654.03,0.00011506,2]
[352773933,1739303445502,-753.86,0.00011506,2]
[352773934,1739303445512,-246.59405577,0.00011506,2]
[352773935,1739303445521,-507.04,0.00011506,2]
[352773936,1739303445533,-500.0,0.00011506,2]
[352773937,1739303445544,-547.221696,0.00011506,2]
[352773938,1739303445554,-547.221696,0.00011506,2]
[352773939,1739303445563,-500.0,0.00011506,2]
[352773940,1739303445573,-463.08897415,0.00011506,2]
[352773941,1739303445583,-957.080128,0.00011506,2]
[352773942,1739303445593,-957.080128,0.00011506,2]
[352773943,1739303445603,-547.221696,0.00011506,2]
[352773944,1739303445613,-547.221696,0.00011506,2]
[352773945,1739303445623,-957.080128,0.00011506,2]
[352773946,1739303445634,-957.080128,0.00011506,2]
[352773947,1739303445646,-712.89,0.00011506,2]
[352773948,1739303445657,-500.0,0.00011506,2]
[352773949,1739303445667,-150.24,0.00011506,2]
[352773950,1739303445678,-199.4,0.00011506,2]
[352773951,1739303445688,-500.0,0.00011506,2]
[352773952,1739303445698,-500.0,0.00011506,2]
[352773954,1739303445708,-11677.3,0.00011506,2]
[352773955,1739303445718,-926.69,0.00011506,2]
[352773956,1739303445727,-217.80647309,0.00011506,2]
[352773957,1739303445737,-151.0,0.00011506,2]
[352773958,1739303445747,-151.0,0.00011506,2]
[352773959,1739303445756,-3567.5,0.00011506,2]
[352773960,1739303445766,-2888.67531,0.00011506,2]
[352773961,1739303445775,-2888.67531,0.00011506,2]
[352773962,1739303445785,-500.0,0.00011506,2]
[352773963,1739303445795,-595.15,0.00011506,2]
[352773964,1739303445804,-1309.09,0.00011506,2]
[352773965,1739303445813,-2888.67531,0.00011506,2]
[352773966,1739303445823,-2888.67531,0.00011506,2]
[352773967,1739303445833,-199.37,0.00011506,2]
[352773968,1739303445842,-150.23,0.00011506,2]
[352773969,1739303445853,-150.23,0.00011506,2]
[352773971,1739303445862,-150.23,0.00011506,2]
[352773973,1739303445871,-150.23,0.00011506,2]
[352773974,1739303445881,-150.23,0.00011506,2]
[352773976,1739303445892,-500.0,0.00011506,2]
[352773978,1739303445903,-500.0,0.00011506,2]
[352773980,1739303445913,-500.0,0.00011506,2]
[352773982,1739303445923,-500.0,0.00011506,2]
[352773984,1739303445933,-500.0,0.00011506,2]
[352773986,1739303445943,-500.0,0.00011506,2]
[352773988,1739303445953,-681.09,0.00011506,2]
[352773990,1739303445962,-500.0,0.00011506,2]
[352773992,1739303445972,-151.0,0.00011506,2]
[352773994,1739303445981,-151.0,0.00011506,2]
[352773996,1739303445992,-1265.35,0.00011506,2]
[352773998,1739303446001,-935.08,0.00011506,2]
[352774000,1739303446011,-500.0,0.00011506,2]
[352774002,1739303446020,-530.01,0.00011506,2]
[352774004,1739303446030,-510.18,0.00011506,2]
[352774006,1739303446045,-500.0,0.00011506,2]
[352774009,1739303446055,-150.23,0.00011506,2]
[352774011,1739303446064,-151.0,0.00011506,2]
[352774013,1739303446074,-232.519384,0.00011506,2]
[352774015,1739303446084,-246.355984,0.00011506,2]
[352774017,1739303446094,-151.0,0.00011506,2]
[352774019,1739303446103,-151.0,0.00011506,2]
[352774021,1739303446112,-500.0,0.00011506,2]
[352774023,1739303446123,-232.519384,0.00011506,2]
[352774025,1739303446132,-151.0,0.00011506,2]
[352774027,1739303446141,-151.0,0.00011506,2]
[352774029,1739303446152,-500.0,0.00011506,2]
[352774031,1739303446161,-500.0,0.00011506,2]
[352774033,1739303446170,-500.0,0.00011506,2]
[352774035,1739303446180,-668.36,0.00011506,2]
[352774037,1739303446189,-619.847019,0.00011506,2]
[352774039,1739303446199,-619.847019,0.00011506,2]
[352774041,1739303446208,-619.847019,0.00011506,2]
[352774043,1739303446218,-619.847019,0.00011506,2]
[352774045,1739303446228,-167.68207856,0.00011506,2]
[352774100,1739303446736,-500.0,0.00010958,2]
[352774101,1739303446746,-775.44,0.00010959,2]
[352774102,1739303446756,-458.414256,0.00011232,2]
[352774104,1739303446766,-458.414256,0.000113,2]
[352774106,1739303446776,-458.414256,0.000113,2]
[352774107,1739303446786,-458.414256,0.00011369,2]
[352774110,1739303446797,-458.414256,0.00011505,2]
[352774112,1739303446807,-458.414256,0.00011505,2]
[352774113,1739303446817,-1218.50792144,0.00011506,2]
[352774115,1739303446826,-481.902733,0.00011506,2]
[352774117,1739303446836,-481.902733,0.00011506,2]
[352774119,1739303446846,-203.277187,0.00011506,2]
[352774121,1739303446856,-203.277187,0.00011506,2]
[352774123,1739303446866,-481.902733,0.00011506,2]
[352774125,1739303446876,-481.902733,0.00011506,2]
[352774127,1739303446885,-203.277187,0.00011506,2]
[352774129,1739303446895,-203.277187,0.00011506,2]
[352774131,1739303446904,-4370.0,0.00011506,2]
[352774133,1739303446914,-500.0,0.00011506,2]
[352774135,1739303446923,-1808.29,0.00011506,2]
[352774137,1739303446933,-458.414256,0.00011506,2]
[352774139,1739303446942,-458.414256,0.00011506,2]
[352774141,1739303446951,-156.520759,0.00011572,2]
[352774143,1739303446961,-156.520759,0.00011572,2]
[352774145,1739303446970,-151.0,0.00011572,2]
[352774147,1739303446980,-151.0,0.00011572,2]
[352774149,1739303446990,-500.46076946,0.00011573,2]
[352774151,1739303447000,-151.0,0.000116,2]
[352774153,1739303447009,-151.0,0.00011621,2]
[352774155,1739303447018,-151.0,0.00011643,2]
[352774157,1739303447028,-268.537964,0.00011643,2]
[352774159,1739303447037,-268.537964,0.00011643,2]
[352774162,1739303447047,-500.0,0.00011643,2]
[352774164,1739303447058,-500.0,0.00011643,2]
[352774166,1739303447067,-156.520759,0.00011643,2]
[352774168,1739303447076,-156.520759,0.00011643,2]
[352774170,1739303447086,-479.07437318,0.00011643,2]
[352774172,1739303447095,-151.0,0.00011643,2]
[352774174,1739303447104,-151.0,0.00011643,2]
[352774176,1739303447113,-500.0,0.00011643,2]
[352774178,1739303447123,-151.0,0.00011643,2]
[352774180,1739303447132,-151.0,0.00011643,2]
[352774182,1739303447141,-202.403061,0.00011643,2]
[352774184,1739303447153,-202.403061,0.00011643,2]
[352774186,1739303447162,-500.0,0.00011643,2]
[352774188,1739303447173,-151.0,0.00011643,2]
[352774190,1739303447183,-500.0,0.00011643,2]
[352774192,1739303447192,-277.157456,0.00011643,2]
[352774193,1739303447202,-277.157456,0.00011643,2]
[352774195,1739303447211,-500.0,0.00011643,2]
[352774197,1739303447221,-500.0,0.00011643,2]
[352774199,1739303447230,-151.0,0.00011643,2]
[352774201,1739303447240,-855.330248,0.00011643,2]
[352774203,1739303447250,-855.330248,0.00011643,2]
[352774205,1739303447260,-3045.468305,0.00011643,2]
[352774207,1739303447269,-3045.468305,0.00011643,2]
[352774210,1739303447280,-151.0,0.00011643,2]
[352774212,1739303447289,-500.0,0.00011643,2]
[352774214,1739303447298,-500.0,0.00011643,2]
[352774215,1739303447308,-425.516405,0.00011643,2]
[352774217,1739303447317,-425.516405,0.00011643,2]
[352774219,1739303447327,-462.957425,0.00011643,2]
[352774221,1739303447337,-462.957425,0.00011643,2]
[352774223,1739303447346,-151.0,0.00011643,2]
[352774225,1739303447356,-151.0,0.00011643,2]
[352774227,1739303447365,-1048.82,0.00011643,2]
[352774229,1739303447375,-758.1,0.00011643,2]
[352774231,1739303447385,-162.000257,0.00011643,2]
[352774233,1739303447395,-162.000257,0.00011643,2]
[352774235,1739303447407,-753.86,0.00011643,2]
[352774237,1739303447417,-507.04,0.00011643,2]
[352774239,1739303447429,-500.0,0.00011643,2]
[352774241,1739303447439,-500.0,0.00011643,2]
[352774244,1739303447453,-547.221696,0.00011643,2]
[352774245,1739303447464,-874.79774082,0.00011643,2]
[352774248,1739303447480,-82.28238718,0.00011643,2]
[352774250,1739303447491,-547.221696,0.00011643,2]
[352774252,1739303447501,-957.080128,0.00011643,2]
[352774254,1739303447511,-712.89,0.00011643,2]
[352774256,1739303447521,-500.0,0.00011643,2]
[352774258,1739303447532,-500.0,0.00011643,2]
[352774260,1739303447542,-2415.09782253,0.00011643,2]
[352774262,1739303447553,-488.5385,0.00011643,2]
[352774264,1739303447566,-8773.66367747,0.00011643,2]
[352774265,1739303447575,-926.69,0.00011643,2]
[352774267,1739303447585,-151.0,0.00011643,2]
[352774269,1739303447595,-3567.5,0.00011643,2]
[352774270,1739303447605,-2888.67531,0.00011643,2]
[352774272,1739303447615,-595.15,0.00011643,2]
[352774275,1739303447625,-1309.09,0.00011643,2]
[352774277,1739303447635,-2888.67531,0.00011643,2]
[352774278,1739303447647,-500.0,0.00011643,2]
[352774279,1739303447662,-500.0,0.00011643,2]
[352774281,1739303447672,-500.0,0.00011643,2]
[352774282,1739303447683,-500.0,0.00011643,2]
[352774283,1739303447694,-500.0,0.00011643,2]
[352774284,1739303447704,-500.0,0.00011643,2]
[352774285,1739303447715,-681.09,0.00011643,2]
[352774286,1739303447725,-500.0,0.00011643,2]
[352774287,1739303447735,-151.0,0.00011643,2]
[352774288,1739303447746,-1265.35,0.00011643,2]
[352774289,1739303447757,-935.08,0.00011643,2]
[352774290,1739303447768,-500.0,0.00011643,2]
[352774291,1739303447779,-530.01,0.00011643,2]
[352774292,1739303447790,-510.18,0.00011643,2]
[352774293,1739303447801,-500.0,0.00011643,2]
[352774294,1739303447811,-151.0,0.00011643,2]
[352774295,1739303447822,-151.0,0.00011643,2]
[352774296,1739303447832,-232.519384,0.00011643,2]
[352774297,1739303447842,-232.519384,0.00011643,2]
[352774298,1739303447852,-151.0,0.00011643,2]
[352774299,1739303447863,-500.0,0.00011643,2]
[352774300,1739303447874,-232.519384,0.00011643,2]
[352774301,1739303447885,-232.519384,0.00011643,2]
[352774302,1739303447896,-210.721848,0.00011643,2]
[352774303,1739303447910,-500.0,0.00011643,2]
[352774304,1739303447921,-500.0,0.00011643,2]
[352774305,1739303447932,-500.0,0.00011643,2]
[352774306,1739303447942,-668.36,0.00011643,2]
[352774307,1739303447952,-619.847019,0.00011643,2]
[352774308,1739303447963,-619.847019,0.00011643,2]
[352774309,1739303447972,-1386.19,0.00011643,2]
[352774310,1739303447983,-481.902733,0.00011643,2]
[352774311,1739303447993,-203.277187,0.00011643,2]
[352774312,1739303448003,-481.902733,0.00011643,2]
[352774313,1739303448013,-203.277187,0.00011643,2]
[352774314,1739303448024,-4370.0,0.00011643,2]
[352774315,1739303448034,-500.0,0.00011643,2]
[352774316,1739303448045,-1808.29,0.00011643,2]
[352774317,1739303448054,-458.414256,0.00011643,2]
[352774318,1739303448064,-151.0,0.000117,2]
[352774319,1739303448074,-151.0,0.00011747,2]
[352774320,1739303448084,-151.0,0.00011747,2]
[352774321,1739303448094,-151.0,0.00011747,2]
[352774322,1739303448104,-268.537964,0.00011747,2]
[352774323,1739303448115,-268.537964,0.00011747,2]
[352774324,1739303448126,-249.61558517,0.0001178,2]
[352774325,1739303448136,-683.53047462,0.0001178,2]
[352774326,1739303448150,-500.0,0.0001178,2]
[352774327,1739303448160,-199.48,0.0001178,2]
[352774328,1739303448171,-150.23,0.0001178,2]
[352774329,1739303448182,-150.23,0.0001178,2]
[352774330,1739303448193,-150.23,0.0001178,2]
[352774331,1739303448203,-821.36,0.0001178,2]
[352774332,1739303448214,-151.0,0.0001178,2]
[352774333,1739303448225,-151.0,0.0001178,2]
[352774334,1739303448235,-151.0,0.0001178,2]
[352774335,1739303448246,-268.537964,0.0001178,2]
[352774336,1739303448256,-268.537964,0.0001178,2]
[352774337,1739303448267,-500.0,0.0001178,2]
[352774338,1739303448278,-500.0,0.0001178,2]
[352774339,1739303448288,-156.520759,0.0001178,2]
[352774340,1739303448298,-156.520759,0.0001178,2]
[352774341,1739303448309,-151.0,0.0001178,2]
[352774342,1739303448318,-151.0,0.0001178,2]
[352774343,1739303448329,-500.0,0.0001178,2]
[352774344,1739303448339,-151.0,0.0001178,2]
[352774345,1739303448349,-151.0,0.0001178,2]
[352774346,1739303448360,-202.403061,0.0001178,2]
[352774347,1739303448370,-202.403061,0.0001178,2]
[352774348,1739303448380,-500.0,0.0001178,2]
[352774349,1739303448390,-151.0,0.0001178,2]
[352774350,1739303448402,-352.59728924,0.0001178,2]
[352774351,1739303448412,-277.157456,0.0001178,2]
[352774352,1739303448423,-277.157456,0.0001178,2]
[352774353,1739303448433,-277.157456,0.0001178,2]
[352774354,1739303448443,-277.157456,0.0001178,2]
[352774355,1739303448457,-500.0,0.0001178,2]
[352774356,1739303448467,-500.0,0.0001178,2]
[352774357,1739303448477,-151.0,0.0001178,2]
[352774358,1739303448487,-151.0,0.0001178,2]
[352774359,1739303448499,-855.330248,0.0001178,2]
[352774360,1739303448509,-855.330248,0.0001178,2]
[352774361,1739303448519,-855.330248,0.0001178,2]
[352774362,1739303448530,-855.330248,0.0001178,2]
[352774363,1739303448543,-3045.468305,0.0001178,2]
[352774364,1739303448554,-3045.468305,0.0001178,2]
[352774365,1739303448565,-3045.468305,0.0001178,2]
[352774366,1739303448576,-3045.468305,0.0001178,2]
[352774367,1739303448588,-151.0,0.0001178,2]
[352774368,1739303448598,-151.0,0.0001178,2]
[352774369,1739303448608,-500.0,0.0001178,2]
[352774370,1739303448619,-500.0,0.0001178,2]
[352774371,1739303448765,-425.516405,0.0001178,2]
[352774372,1739303448999,-425.516405,0.0001178,2]
[352774373,1739303449011,-425.516405,0.0001178,2]
[352774374,1739303449021,-425.516405,0.0001178,2]
[352774375,1739303449032,-462.957425,0.0001178,2]
[352774376,1739303449044,-462.957425,0.0001178,2]
[352774377,1739303449054,-151.0,0.0001178,2]
[352774378,1739303449064,-151.0,0.0001178,2]
[352774379,1739303449074,-1048.82,0.0001178,2]
[352774380,1739303449086,-758.1,0.0001178,2]
[352774381,1739303449096,-162.000257,0.0001178,2]
[352774382,1739303449107,-162.000257,0.0001178,2]
[352774383,1739303449118,-753.86,0.0001178,2]
[352774384,1739303449127,-507.04,0.0001178,2]
[352774385,1739303449136,-500.0,0.0001178,2]
[352774386,1739303449149,-500.0,0.0001178,2]
[352774387,1739303449160,-547.221696,0.0001178,2]
[352774388,1739303449170,-957.080128,0.0001178,2]
[352774389,1739303449181,-547.221696,0.0001178,2]
[352774390,1739303449191,-957.080128,0.0001178,2]
[352774391,1739303449202,-712.89,0.0001178,2]
[352774392,1739303449212,-500.0,0.0001178,2]
[352774393,1739303449223,-500.0,0.0001178,2]
[352774394,1739303449234,-11677.3,0.0001178,2]
[352774395,1739303449244,-926.69,0.0001178,2]
[352774396,1739303449253,-183.264605,0.0001178,2]
[352774397,1739303449264,-3567.5,0.0001178,2]
[352774398,1739303449275,-2888.67531,0.0001178,2]
[352774399,1739303449284,-2888.67531,0.0001178,2]
[352774400,1739303449294,-595.15,0.0001178,2]
[352774401,1739303449304,-1309.09,0.0001178,2]
[352774402,1739303449313,-2888.67531,0.0001178,2]
[352774403,1739303449323,-2888.67531949,0.0001178,2]
[352774404,1739303449332,-500.0,0.0001178,2]
[352774405,1739303449341,-500.0,0.0001178,2]
[352774406,1739303449351,-500.0,0.0001178,2]
[352774407,1739303449360,-500.0,0.0001178,2]
[352774408,1739303449370,-500.0,0.0001178,2]
[352774409,1739303449380,-500.0,0.0001178,2]
[352774410,1739303449389,-681.09,0.0001178,2]
[352774411,1739303449400,-297.20568147,0.0001178,2]
[352774412,1739303449409,-1265.35,0.0001178,2]
[352774413,1739303449420,-935.08,0.0001178,2]
[352774414,1739303449429,-500.0,0.0001178,2]
[352774415,1739303449438,-530.01,0.0001178,2]
[352774416,1739303449449,-510.18,0.0001178,2]
[352774417,1739303449463,-500.0,0.0001178,2]
[352774418,1739303449472,-151.0,0.0001178,2]
[352774419,1739303449482,-232.519384,0.0001178,2]
[352774420,1739303449492,-151.0,0.0001178,2]
[352774421,1739303449502,-500.0,0.0001178,2]
[352774422,1739303449512,-151.0,0.0001178,2]
[352774423,1739303449522,-232.519384,0.0001178,2]
[352774424,1739303449534,-500.0,0.0001178,2]
[352774425,1739303449549,-500.0,0.0001178,2]
[352774426,1739303449559,-500.0,0.0001178,2]
[352774427,1739303449569,-668.36,0.0001178,2]
[352774428,1739303449579,-619.847019,0.0001178,2]
[352774429,1739303449589,-619.847019,0.0001178,2]
[352774430,1739303449599,-619.847019,0.0001178,2]
[352774431,1739303449609,-619.847021,0.0001178,2]
[352774432,1739303449619,-1386.19,0.0001178,2]
[352774433,1739303449629,-481.902733,0.0001178,2]
[352774434,1739303449639,-481.902733,0.0001178,2]
[352774435,1739303449650,-203.277187,0.0001178,2]
[352774436,1739303449660,-203.277187,0.0001178,2]
[352774437,1739303449670,-481.902733,0.0001178,2]
[352774438,1739303449680,-481.902731,0.0001178,2]
[352774439,1739303449690,-203.277187,0.0001178,2]
[352774440,1739303449700,-203.277187,0.0001178,2]
[352774441,1739303449710,-4370.0,0.0001178,2]
[352774442,1739303449719,-500.0,0.0001178,2]
[352774443,1739303449729,-1808.29,0.0001178,2]
[352774444,1739303449738,-458.414256,0.0001178,2]
[352774445,1739303449748,-458.414256,0.0001178,2]
[352774446,1739303449757,-168.2461105,0.00011781,2]
[352774447,1739303449767,-465.00412837,0.000118,2]
[352774448,1739303449777,-151.0,0.000118,2]
[352774449,1739303449786,-151.0,0.000118,2]
[352774450,1739303449796,-151.0,0.000119,2]
[352774451,1739303449806,-151.0,0.00011916,2]
[352774452,1739303449815,-151.0,0.00011916,2]
[352774453,1739303449825,-237.092912,0.00011916,2]
[352774454,1739303449835,-462.957425,0.00011916,2]
[352774455,1739303449846,-462.957425,0.00011916,2]
[352774456,1739303449855,-151.0,0.00011916,2]
[352774457,1739303449865,-151.0,0.00011916,2]
[352774458,1739303449875,-162.000257,0.00011916,2]
[352774459,1739303449885,-162.000257,0.00011916,2]
[352774460,1739303449894,-547.221696,0.00011916,2]
[352774461,1739303449906,-957.080128,0.00011916,2]
[352774462,1739303449916,-547.221696,0.00011916,2]
[352774463,1739303449926,-957.080128,0.00011916,2]
[352774464,1739303449936,-821.36,0.00011917,2]
[352774465,1739303449945,-151.0,0.00011917,2]
[352774466,1739303449954,-268.537964,0.00011917,2]
[352774467,1739303449965,-268.537964,0.00011917,2]
[352774468,1739303449975,-349.42146462,0.00011917,2]
[352774469,1739303449984,-500.0,0.00011917,2]
[352774470,1739303449994,-156.520759,0.00011917,2]
[352774471,1739303450004,-156.520759,0.00011917,2]
[352774472,1739303450017,-156.520759,0.00011917,2]
[352774473,1739303450026,-156.520759,0.00011917,2]
[352774474,1739303450035,-151.0,0.00011917,2]
[352774475,1739303450044,-151.0,0.00011917,2]
[352774476,1739303450054,-500.0,0.00011917,2]
[352774477,1739303450064,-151.0,0.00011917,2]
[352774478,1739303450073,-151.0,0.00011917,2]
[352774479,1739303450083,-151.0,0.00011917,2]
[352774480,1739303450092,-235.39119,0.00011917,2]
[352774481,1739303450102,-202.403061,0.00011917,2]
[352774482,1739303450111,-202.403061,0.00011917,2]